[Event "*** SCC Grand Prix: Titled Tuesday Blitz"]
[Site "Chess.com"]
[Date "2020.10.06"]
[Round "6"]
[White "Zhigalko_Sergei"]
[Black "swimmerchess"]
[Result "1-0"]
[WhiteElo "2931"]
[BlackElo "2814"]
[TimeControl "180+1"]
[EndTime "11:08:23 PDT"]
[Termination "Zhigalko_Sergei won on time"]

1. e4 {[%clk 0:03:00.9]} 1... e5 {[%clk 0:02:59.7]} 2. Nf3 {[%clk 0:03:01.1]}
2... Nc6 {[%clk 0:02:59.8]} 3. Bb5 {[%clk 0:03:01.1]} 3... a6 {[%clk 0:02:59.5]}
4. Ba4 {[%clk 0:03:01.6]} 4... Nf6 {[%clk 0:02:59.2]} 5. O-O {[%clk 0:03:01.7]}
5... Be7 {[%clk 0:02:59]} 6. Re1 {[%clk 0:03:01.8]} 6... b5 {[%clk 0:02:59.4]}
7. Bb3 {[%clk 0:03:02.4]} 7... d6 {[%clk 0:03:00.3]} 8. c3 {[%clk 0:03:02.8]}
8... O-O {[%clk 0:03:00.6]} 9. h3 {[%clk 0:03:02.5]} 9... Bb7 {[%clk 0:03:00.5]}
10. d3 {[%clk 0:03:02.5]} 10... Re8 {[%clk 0:02:51]} 11. Ng5 {[%clk 0:03:01.6]}
11... Rf8 {[%clk 0:02:50.5]} 12. Nf3 {[%clk 0:03:02]} 12... Re8 {[%clk
0:02:50.2]} 13. Ng5 {[%clk 0:03:02.5]} 13... Rf8 {[%clk 0:02:50]} 14. Nd2 {[%clk
0:03:03.1]} 14... Nd7 {[%clk 0:02:22.4]} 15. Ngf3 {[%clk 0:03:00.8]} 15... Nc5
{[%clk 0:02:20.9]} 16. Bc2 {[%clk 0:03:01.3]} 16... Kh8 {[%clk 0:02:18.8]} 17.
d4 {[%clk 0:02:59.3]} 17... Nd7 {[%clk 0:02:15]} 18. Nf1 {[%clk 0:02:56.6]}
18... Bf6 {[%clk 0:02:03.4]} 19. Ng3 {[%clk 0:02:55.3]} 19... g6 {[%clk
0:01:59.4]} 20. Bh6 {[%clk 0:02:54.2]} 20... Re8 {[%clk 0:01:57.7]} 21. Qd2
{[%clk 0:02:48.6]} 21... Qe7 {[%clk 0:01:47.4]} 22. Rad1 {[%clk 0:02:46]} 22...
Rad8 {[%clk 0:01:45.3]} 23. Bg5 {[%clk 0:01:57]} 23... Bxg5 {[%clk 0:00:53]} 24.
Nxg5 {[%clk 0:01:56.1]} 24... f6 {[%clk 0:00:40.8]} 25. Nf3 {[%clk 0:01:51.7]}
25... Qg7 {[%clk 0:00:41.1]} 26. a4 {[%clk 0:01:35.9]} 26... Nb6 {[%clk
0:00:35.5]} 27. axb5 {[%clk 0:01:34.6]} 27... axb5 {[%clk 0:00:36.4]} 28. Bd3
{[%clk 0:01:34.5]} 28... b4 {[%clk 0:00:29.4]} 29. Bb5 {[%clk 0:01:21.1]} 29...
Re7 {[%clk 0:00:08.8]} 30. Bxc6 {[%clk 0:01:02.1]} 30... Bxc6 {[%clk 0:00:07.8]}
31. cxb4 {[%clk 0:01:02.9]} 31... Bb7 {[%clk 0:00:03.8]} 32. b5 {[%clk
0:00:53.8]} 32... Rf8 {[%clk 0:00:03.2]} 33. Rc1 {[%clk 0:00:50.6]} 33... f5
{[%clk 0:00:02.4]} 34. dxe5 {[%clk 0:00:44.7]} 34... dxe5 {[%clk 0:00:03.3]} 35.
Rc5 {[%clk 0:00:40.9]} 35... Na4 {[%clk 0:00:03.1]} 36. Rc2 {[%clk 0:00:37.2]}
36... Nb6 {[%clk 0:00:03.6]} 37. Qb4 {[%clk 0:00:33.8]} 37... f4 {[%clk
0:00:03.1]} 38. Nf1 {[%clk 0:00:21.5]} 38... g5 {[%clk 0:00:03.5]} 39. Rec1
{[%clk 0:00:22]} 39... h5 {[%clk 0:00:02.7]} 40. Rxc7 {[%clk 0:00:22]} 1-0

[Event "*** SCC Grand Prix: Titled Tuesday Blitz"]
[Site "Chess.com"]
[Date "2020.10.06"]
[Round "6"]
[White "PSvidler"]
[Black "emiliocordova"]
[Result "1-0"]
[WhiteElo "2912"]
[BlackElo "2786"]
[TimeControl "180+1"]
[EndTime "11:08:23 PDT"]
[Termination "PSvidler won by resignation"]

1. c4 {[%clk 0:03:00.9]} 1... e5 {[%clk 0:02:57.2]} 2. g3 {[%clk 0:02:56.9]}
2... Nc6 {[%clk 0:02:55.9]} 3. Bg2 {[%clk 0:02:56.9]} 3... Bc5 {[%clk
0:02:54.8]} 4. e3 {[%clk 0:02:56]} 4... d6 {[%clk 0:02:54.5]} 5. Ne2 {[%clk
0:02:55.7]} 5... Nge7 {[%clk 0:02:49.3]} 6. d4 {[%clk 0:02:54.6]} 6... Bb6
{[%clk 0:02:49.1]} 7. Nbc3 {[%clk 0:02:34.1]} 7... Bg4 {[%clk 0:02:46.7]} 8. h3
{[%clk 0:02:30.8]} 8... Bxe2 {[%clk 0:02:42.5]} 9. Nxe2 {[%clk 0:02:30.7]} 9...
exd4 {[%clk 0:02:43.4]} 10. exd4 {[%clk 0:02:13.8]} 10... Nf5 {[%clk 0:02:42.7]}
11. Bxc6+ {[%clk 0:02:07.3]} 11... bxc6 {[%clk 0:02:42.4]} 12. Qd3 {[%clk
0:01:40.2]} 12... Qf6 {[%clk 0:02:38.9]} 13. Be3 {[%clk 0:01:40.1]} 13... O-O
{[%clk 0:02:26.2]} 14. O-O-O {[%clk 0:01:37.2]} 14... Rab8 {[%clk 0:02:17.7]}
15. Rhf1 {[%clk 0:01:34.1]} 15... c5 {[%clk 0:02:16.6]} 16. g4 {[%clk
0:01:28.7]} 16... cxd4 {[%clk 0:02:12.5]} 17. Nxd4 {[%clk 0:01:24.9]} 17... Nxd4
{[%clk 0:01:51.2]} 18. Bxd4 {[%clk 0:01:24.9]} 18... Bxd4 {[%clk 0:01:27.4]} 19.
Qxd4 {[%clk 0:01:25.8]} 19... Qh6+ {[%clk 0:01:25.7]} 20. Qe3 {[%clk 0:01:25.7]}
20... Qxe3+ {[%clk 0:01:25.5]} 21. fxe3 {[%clk 0:01:25.9]} 21... Rfe8 {[%clk
0:01:26.4]} 22. Rd3 {[%clk 0:01:25.8]} 22... Re4 {[%clk 0:01:25.7]} 23. b3
{[%clk 0:01:25.7]} 23... f6 {[%clk 0:01:22.2]} 24. Rf5 {[%clk 0:01:24.9]} 24...
Re5 {[%clk 0:01:20]} 25. Kd2 {[%clk 0:01:24.1]} 25... Kf7 {[%clk 0:01:20]} 26.
Rd5 {[%clk 0:01:23.2]} 26... Re7 {[%clk 0:00:50.2]} 27. Ra5 {[%clk 0:01:21.5]}
27... c6 {[%clk 0:00:49.7]} 28. Ra6 {[%clk 0:01:20.8]} 28... Rc8 {[%clk
0:00:49.9]} 29. b4 {[%clk 0:01:17.8]} 29... Rcc7 {[%clk 0:00:49]} 30. a3 {[%clk
0:01:17.7]} 30... g6 {[%clk 0:00:49]} 31. Rfa5 {[%clk 0:01:16.9]} 31... Red7
{[%clk 0:00:43.2]} 32. Kd3 {[%clk 0:01:16.9]} 32... Re7 {[%clk 0:00:41.4]} 33.
a4 {[%clk 0:01:16.9]} 33... Ke8 {[%clk 0:00:30.8]} 34. b5 {[%clk 0:01:17]} 34...
cxb5 {[%clk 0:00:30.3]} 35. axb5 {[%clk 0:01:17.1]} 35... Red7 {[%clk
0:00:28.2]} 36. Kd4 {[%clk 0:01:16.7]} 36... Ke7 {[%clk 0:00:28.4]} 37. Rc6
{[%clk 0:01:15.6]} 37... Rb7 {[%clk 0:00:23.8]} 38. Kd5 {[%clk 0:01:14.6]} 38...
Kf7 {[%clk 0:00:09.8]} 39. Raa6 {[%clk 0:01:13.9]} 39... Re7 {[%clk 0:00:10]}
40. Rxd6 {[%clk 0:01:13.6]} 40... Rxe3 {[%clk 0:00:10.5]} 41. Rxf6+ {[%clk
0:01:05.9]} 41... Kg7 {[%clk 0:00:10.5]} 42. Rfe6 {[%clk 0:01:01.9]} 42... Rxh3
{[%clk 0:00:10]} 43. Rad6 {[%clk 0:00:58.1]} 43... Kh6 {[%clk 0:00:08.9]} 44.
Kc6 {[%clk 0:00:57.4]} 44... Rf7 {[%clk 0:00:08.6]} 45. c5 {[%clk 0:00:57.4]}
45... Rc3 {[%clk 0:00:08.6]} 46. Re5 {[%clk 0:00:54]} 46... Rf4 {[%clk
0:00:07.8]} 47. Rd7 {[%clk 0:00:53.2]} 47... Rxg4 {[%clk 0:00:07.7]} 48. Rxa7
{[%clk 0:00:52.8]} 48... Rgc4 {[%clk 0:00:07.8]} 49. b6 {[%clk 0:00:52.8]} 49...
Rb4 {[%clk 0:00:06.4]} 50. Ra5 {[%clk 0:00:48]} 50... Rcb3 {[%clk 0:00:06.3]}
51. Kc7 {[%clk 0:00:46.4]} 51... g5 {[%clk 0:00:06.1]} 52. Ra6 {[%clk
0:00:42.5]} 52... g4 {[%clk 0:00:06.2]} 53. b7+ {[%clk 0:00:42.5]} 53... Kg7
{[%clk 0:00:06.5]} 54. Rb6 {[%clk 0:00:42.7]} 1-0

[Event "*** SCC Grand Prix: Titled Tuesday Blitz"]
[Site "Chess.com"]
[Date "2020.10.06"]
[Round "6"]
[White "alejanchess73"]
[Black "NotFischer"]
[Result "1-0"]
[WhiteElo "2431"]
[BlackElo "2283"]
[TimeControl "180+1"]
[EndTime "11:08:25 PDT"]
[Termination "alejanchess73 won by resignation"]

1. d4 {[%clk 0:03:00.9]} 1... Nf6 {[%clk 0:02:59.5]} 2. c4 {[%clk 0:03:00.4]}
2... e6 {[%clk 0:02:59.6]} 3. g3 {[%clk 0:02:58.6]} 3... d5 {[%clk 0:02:59.4]}
4. Bg2 {[%clk 0:02:57.5]} 4... Be7 {[%clk 0:02:59.3]} 5. Qc2 {[%clk 0:02:57.6]}
5... O-O {[%clk 0:02:59.1]} 6. Nf3 {[%clk 0:02:57.9]} 6... Nbd7 {[%clk
0:02:58.9]} 7. O-O {[%clk 0:02:58]} 7... c6 {[%clk 0:02:59]} 8. Nbd2 {[%clk
0:02:57.8]} 8... b6 {[%clk 0:02:59.2]} 9. Rd1 {[%clk 0:02:57.9]} 9... Bb7 {[%clk
0:02:58.9]} 10. b3 {[%clk 0:02:57.2]} 10... Rc8 {[%clk 0:02:55.9]} 11. Bb2
{[%clk 0:02:57.2]} 11... Qc7 {[%clk 0:02:52.2]} 12. Rac1 {[%clk 0:02:56.7]}
12... Qb8 {[%clk 0:02:51.1]} 13. Qb1 {[%clk 0:02:56.7]} 13... Rfd8 {[%clk
0:02:45.3]} 14. e4 {[%clk 0:02:56.7]} 14... dxe4 {[%clk 0:02:45.2]} 15. Nxe4
{[%clk 0:02:57.6]} 15... Nxe4 {[%clk 0:02:45.7]} 16. Qxe4 {[%clk 0:02:57]} 16...
Nf6 {[%clk 0:02:43.6]} 17. Qe2 {[%clk 0:02:55.8]} 17... Bf8 {[%clk 0:02:36.6]}
18. h4 {[%clk 0:02:52]} 18... h6 {[%clk 0:02:35.8]} 19. Ne5 {[%clk 0:02:48.9]}
19... c5 {[%clk 0:02:31.9]} 20. dxc5 {[%clk 0:02:42.7]} 20... Bxc5 {[%clk
0:02:20.8]} 21. Nd3 {[%clk 0:02:38.8]} 21... Be7 {[%clk 0:02:12.5]} 22. Bxb7
{[%clk 0:02:24.4]} 22... Qxb7 {[%clk 0:02:12.5]} 23. Ne5 {[%clk 0:02:23.9]}
23... Rxd1+ {[%clk 0:02:03.6]} 24. Rxd1 {[%clk 0:02:23.2]} 24... Rd8 {[%clk
0:02:03.2]} 25. Rxd8+ {[%clk 0:02:23.1]} 25... Bxd8 {[%clk 0:02:03.6]} 26. Qf3
{[%clk 0:02:19.3]} 26... Qxf3 {[%clk 0:01:55.2]} 27. Nxf3 {[%clk 0:02:20.2]}
27... Kf8 {[%clk 0:01:54.6]} 28. Kf1 {[%clk 0:02:20.5]} 28... Bc7 {[%clk
0:01:46.4]} 29. Ke2 {[%clk 0:02:20.5]} 29... Ke7 {[%clk 0:01:46.1]} 30. Kd3
{[%clk 0:02:20.1]} 30... a6 {[%clk 0:01:37]} 31. b4 {[%clk 0:02:19.9]} 31... g6
{[%clk 0:01:31.6]} 32. Nd4 {[%clk 0:02:11]} 32... Ng4 {[%clk 0:01:24.7]} 33. f4
{[%clk 0:02:04]} 33... Kd7 {[%clk 0:01:15]} 34. b5 {[%clk 0:01:59.8]} 34... axb5
{[%clk 0:01:10.2]} 35. cxb5 {[%clk 0:01:59.9]} 35... e5 {[%clk 0:01:10]} 36. Ne2
{[%clk 0:01:55.9]} 36... f5 {[%clk 0:01:04.1]} 37. fxe5 {[%clk 0:01:53.4]} 37...
Nxe5+ {[%clk 0:01:02.9]} 38. Bxe5 {[%clk 0:01:51.7]} 38... Bxe5 {[%clk
0:01:02.8]} 39. Kc4 {[%clk 0:01:47.1]} 39... Kd6 {[%clk 0:01:02.5]} 40. a4
{[%clk 0:01:47.4]} 40... g5 {[%clk 0:00:59.1]} 41. h5 {[%clk 0:01:45.7]} 41...
Ke6 {[%clk 0:00:36.2]} 42. a5 {[%clk 0:01:29.6]} 42... bxa5 {[%clk 0:00:36]} 43.
b6 {[%clk 0:01:30.2]} 43... Kd6 {[%clk 0:00:28.3]} 44. Kb5 {[%clk 0:01:29.8]}
44... a4 {[%clk 0:00:26.8]} 45. Kxa4 {[%clk 0:01:29.2]} 45... Kc6 {[%clk
0:00:26.9]} 46. Ka5 {[%clk 0:01:29.7]} 46... f4 {[%clk 0:00:22.7]} 47. gxf4
{[%clk 0:01:10.5]} 47... gxf4 {[%clk 0:00:22]} 48. Ng1 {[%clk 0:01:10.7]} 48...
Kd5 {[%clk 0:00:20.6]} 49. b7 {[%clk 0:01:09.7]} 49... Ke4 {[%clk 0:00:20.4]}
50. Nh3 {[%clk 0:01:03.9]} 50... f3 {[%clk 0:00:18.9]} 51. Nf2+ {[%clk
0:01:03.3]} 51... Ke3 {[%clk 0:00:19.4]} 52. Ng4+ {[%clk 0:01:03.4]} 52... Ke2
{[%clk 0:00:17.2]} 53. Nxe5 {[%clk 0:01:03.9]} 53... f2 {[%clk 0:00:18.1]} 54.
b8=Q {[%clk 0:01:03.7]} 54... f1=Q {[%clk 0:00:18.4]} 55. Qb5+ {[%clk
0:01:00.8]} 55... Kf2 {[%clk 0:00:16.4]} 56. Qxf1+ {[%clk 0:01:00.8]} 56... Kxf1
{[%clk 0:00:16.7]} 57. Nf7 {[%clk 0:01:00.7]} 57... Kf2 {[%clk 0:00:15.5]} 58.
Nxh6 {[%clk 0:01:01.3]} 58... Kf3 {[%clk 0:00:16]} 59. Ng4 {[%clk 0:01:01]}
59... Kxg4 {[%clk 0:00:15.7]} 60. h6 {[%clk 0:01:01.5]} 60... Kg5 {[%clk
0:00:16.6]} 61. h7 {[%clk 0:01:01.5]} 1-0

[Event "*** SCC Grand Prix: Titled Tuesday Blitz"]
[Site "Chess.com"]
[Date "2020.10.06"]
[Round "6"]
[White "TomiLen"]
[Black "dretch"]
[Result "0-1"]
[WhiteElo "2560"]
[BlackElo "2849"]
[TimeControl "180+1"]
[EndTime "11:08:29 PDT"]
[Termination "dretch won on time"]

1. c4 {[%clk 0:03:00.9]} 1... c6 {[%clk 0:02:58]} 2. d4 {[%clk 0:02:59.8]} 2...
d5 {[%clk 0:02:58.2]} 3. Nf3 {[%clk 0:02:59]} 3... Nf6 {[%clk 0:02:58.6]} 4. Nc3
{[%clk 0:02:59.2]} 4... dxc4 {[%clk 0:02:59.2]} 5. a4 {[%clk 0:02:58.5]} 5...
Bf5 {[%clk 0:02:59.4]} 6. e3 {[%clk 0:02:58.2]} 6... e6 {[%clk 0:02:59.1]} 7.
Bxc4 {[%clk 0:02:58.5]} 7... Bb4 {[%clk 0:02:59.3]} 8. O-O {[%clk 0:02:57.4]}
8... O-O {[%clk 0:02:59.3]} 9. Qe2 {[%clk 0:02:56.7]} 9... Nbd7 {[%clk 0:02:57]}
10. e4 {[%clk 0:02:56.3]} 10... Bg4 {[%clk 0:02:57.2]} 11. h3 {[%clk 0:02:51]}
11... Bxf3 {[%clk 0:02:56.9]} 12. Qxf3 {[%clk 0:02:50.6]} 12... Nb6 {[%clk
0:02:57.1]} 13. Bb3 {[%clk 0:02:42.7]} 13... Qxd4 {[%clk 0:02:55.7]} 14. a5
{[%clk 0:02:36.9]} 14... Nbd7 {[%clk 0:02:54.9]} 15. Be3 {[%clk 0:02:31.6]}
15... Qd6 {[%clk 0:02:51.4]} 16. a6 {[%clk 0:02:23.7]} 16... b5 {[%clk
0:02:45.3]} 17. Rfd1 {[%clk 0:02:21.5]} 17... Qe7 {[%clk 0:02:42.6]} 18. Bg5
{[%clk 0:02:05.3]} 18... Qc5 {[%clk 0:02:37]} 19. Be3 {[%clk 0:02:01.8]} 19...
Qe7 {[%clk 0:02:25.5]} 20. Bg5 {[%clk 0:02:01.6]} 20... Rfd8 {[%clk 0:02:16.6]}
21. Rxd7 {[%clk 0:01:48.3]} 21... Qxd7 {[%clk 0:02:15.3]} 22. e5 {[%clk
0:01:41.1]} 22... Nd5 {[%clk 0:02:14.4]} 23. Bxd8 {[%clk 0:01:38.5]} 23... Rxd8
{[%clk 0:02:13.9]} 24. Nxd5 {[%clk 0:01:21.4]} 24... cxd5 {[%clk 0:02:10.4]} 25.
Rc1 {[%clk 0:01:20.5]} 25... Ba5 {[%clk 0:01:59.4]} 26. Qd3 {[%clk 0:01:06.7]}
26... g6 {[%clk 0:01:58]} 27. Rc5 {[%clk 0:01:03.7]} 27... Bb6 {[%clk
0:01:57.5]} 28. Rxb5 {[%clk 0:00:55.9]} 28... Qc7 {[%clk 0:01:49.8]} 29. Qc3
{[%clk 0:00:42.7]} 29... Qxc3 {[%clk 0:01:41.6]} 30. bxc3 {[%clk 0:00:42.4]}
30... Rc8 {[%clk 0:01:41.8]} 31. c4 {[%clk 0:00:38.8]} 31... dxc4 {[%clk
0:01:40.8]} 32. Bc2 {[%clk 0:00:38.6]} 32... Rf8 {[%clk 0:01:19.3]} 33. Kf1
{[%clk 0:00:37.3]} 33... Rd8 {[%clk 0:01:08.3]} 34. Ke2 {[%clk 0:00:36.1]} 34...
Kf8 {[%clk 0:01:06.4]} 35. f4 {[%clk 0:00:34.2]} 35... Ke7 {[%clk 0:00:58]} 36.
Be4 {[%clk 0:00:33.9]} 36... c3 {[%clk 0:00:54.4]} 37. Rb3 {[%clk 0:00:24.3]}
37... Rd2+ {[%clk 0:00:51.6]} 38. Kf3 {[%clk 0:00:24.4]} 38... Bd4 {[%clk
0:00:41.9]} 39. Rb7+ {[%clk 0:00:23.5]} 39... Ke8 {[%clk 0:00:39.4]} 40. Rc7
{[%clk 0:00:19.9]} 40... Rf2+ {[%clk 0:00:31.8]} 41. Kg4 {[%clk 0:00:15.8]}
41... Re2 {[%clk 0:00:21.9]} 42. Bb1 {[%clk 0:00:09.5]} 42... Rxg2+ {[%clk
0:00:16.7]} 43. Kf3 {[%clk 0:00:09.3]} 43... Rb2 {[%clk 0:00:16.5]} 0-1

[Event "*** SCC Grand Prix: Titled Tuesday Blitz"]
[Site "Chess.com"]
[Date "2020.10.06"]
[Round "6"]
[White "Me_ch_an"]
[Black "rududuyk"]
[Result "0-1"]
[WhiteElo "2296"]
[BlackElo "2159"]
[TimeControl "180+1"]
[EndTime "11:08:29 PDT"]
[Termination "rududuyk won on time"]

1. e4 {[%clk 0:03:00.9]} 1... e6 {[%clk 0:02:59.9]} 2. d4 {[%clk 0:03:00.1]}
2... d5 {[%clk 0:03:00.4]} 3. e5 {[%clk 0:03:00.5]} 3... c5 {[%clk 0:03:00.1]}
4. c3 {[%clk 0:03:00.8]} 4... Nc6 {[%clk 0:03:00.5]} 5. g3 {[%clk 0:03:00.9]}
5... Bd7 {[%clk 0:02:58.1]} 6. Ne2 {[%clk 0:03:00.7]} 6... f6 {[%clk 0:02:48.4]}
7. Nf4 {[%clk 0:02:54.5]} 7... Nge7 {[%clk 0:02:36.1]} 8. exf6 {[%clk
0:02:51.4]} 8... Ng6 {[%clk 0:02:35.1]} 9. Nxg6 {[%clk 0:02:12.2]} 9... hxg6
{[%clk 0:02:33.7]} 10. fxg7 {[%clk 0:02:11.6]} 10... Bxg7 {[%clk 0:02:34.2]} 11.
Bd3 {[%clk 0:01:55]} 11... Qf6 {[%clk 0:02:33.3]} 12. Qg4 {[%clk 0:01:48.4]}
12... O-O-O {[%clk 0:02:13.3]} 13. Bg5 {[%clk 0:01:45.8]} 13... Qf8 {[%clk
0:01:57.5]} 14. Bxd8 {[%clk 0:01:44.4]} 14... Nxd8 {[%clk 0:01:57.4]} 15. Bxg6
{[%clk 0:01:15.7]} 15... e5 {[%clk 0:01:53.4]} 16. Qg5 {[%clk 0:00:56.4]} 16...
Bf6 {[%clk 0:01:38.5]} 17. Qd2 {[%clk 0:00:47.5]} 17... exd4 {[%clk 0:01:36.3]}
18. cxd4 {[%clk 0:00:48.4]} 18... Bxd4 {[%clk 0:01:35.1]} 19. Nc3 {[%clk
0:00:43.2]} 19... Bg4 {[%clk 0:01:23.2]} 20. O-O {[%clk 0:00:13.5]} 20... Rh6
{[%clk 0:01:07.5]} 21. Qg5 {[%clk 0:00:10.2]} 21... Be6 {[%clk 0:00:56.3]} 22.
Nxd5 {[%clk 0:00:08.7]} 22... Qg7 {[%clk 0:00:52.5]} 23. Ne7+ {[%clk 0:00:07.4]}
23... Kb8 {[%clk 0:00:40.2]} 24. Rae1 {[%clk 0:00:05.5]} 24... Bf6 {[%clk
0:00:38.6]} 25. Qf4+ {[%clk 0:00:05]} 25... Ka8 {[%clk 0:00:34.4]} 26. Nf5
{[%clk 0:00:04.5]} 26... Qxg6 {[%clk 0:00:29.4]} 27. Nxh6 {[%clk 0:00:04]} 27...
Bg5 {[%clk 0:00:28.4]} 28. Qf8 {[%clk 0:00:04]} 28... Qxh6 {[%clk 0:00:26.4]}
29. Qxh6 {[%clk 0:00:01.7]} 29... Bxh6 {[%clk 0:00:27.3]} 30. f4 {[%clk
0:00:02]} 30... Kb8 {[%clk 0:00:24.2]} 31. f5 {[%clk 0:00:02]} 31... Bc4 {[%clk
0:00:23.5]} 32. Rf2 {[%clk 0:00:01.7]} 32... Nf7 {[%clk 0:00:21.3]} 33. Kg2
{[%clk 0:00:02.6]} 33... Bg7 {[%clk 0:00:19.7]} 34. h3 {[%clk 0:00:02.9]} 34...
Bd4 {[%clk 0:00:19]} 35. g4 {[%clk 0:00:03.1]} 35... Bd5+ {[%clk 0:00:18.6]} 36.
Kg3 {[%clk 0:00:02.5]} 36... Bxf2+ {[%clk 0:00:18.1]} 37. Kxf2 {[%clk
0:00:03.4]} 37... Ng5 {[%clk 0:00:17.5]} 38. Kg3 {[%clk 0:00:03.9]} 38... Ne4+
{[%clk 0:00:16.8]} 39. Kf4 {[%clk 0:00:04.3]} 39... Nd6 {[%clk 0:00:14.1]} 40.
Rd1 {[%clk 0:00:03.8]} 40... Bxa2 {[%clk 0:00:11.4]} 41. Rxd6 {[%clk 0:00:03.7]}
41... Kc7 {[%clk 0:00:12.3]} 0-1

[Event "*** SCC Grand Prix: Titled Tuesday Blitz"]
[Site "Chess.com"]
[Date "2020.10.06"]
[Round "6"]
[White "youngKID"]
[Black "ORS1984"]
[Result "1-0"]
[WhiteElo "2800"]
[BlackElo "2507"]
[TimeControl "180+1"]
[EndTime "11:08:31 PDT"]
[Termination "youngKID won by resignation"]

1. Nf3 {[%clk 0:03:00.9]} 1... d5 {[%clk 0:02:59.6]} 2. d4 {[%clk 0:03:00.7]}
2... Nf6 {[%clk 0:02:59.5]} 3. Bf4 {[%clk 0:03:00.4]} 3... c5 {[%clk 0:02:59.4]}
4. e3 {[%clk 0:03:00.1]} 4... Nc6 {[%clk 0:02:59.3]} 5. c3 {[%clk 0:02:59.3]}
5... Nh5 {[%clk 0:02:58.3]} 6. Be5 {[%clk 0:02:57.9]} 6... f6 {[%clk 0:02:55.1]}
7. Bg3 {[%clk 0:02:57.7]} 7... cxd4 {[%clk 0:02:49.4]} 8. exd4 {[%clk
0:02:54.7]} 8... g6 {[%clk 0:02:49.2]} 9. Bb5 {[%clk 0:02:43.8]} 9... Bh6 {[%clk
0:02:48.1]} 10. O-O {[%clk 0:02:42.1]} 10... O-O {[%clk 0:02:42.6]} 11. Re1
{[%clk 0:02:25]} 11... a6 {[%clk 0:02:40.7]} 12. Bf1 {[%clk 0:02:13.3]} 12...
Bg4 {[%clk 0:02:34.8]} 13. h3 {[%clk 0:02:12.4]} 13... Nxg3 {[%clk 0:02:22.9]}
14. hxg4 {[%clk 0:02:10.4]} 14... Nxf1 {[%clk 0:02:22.6]} 15. Kxf1 {[%clk
0:02:07.1]} 15... Qd6 {[%clk 0:02:08.1]} 16. Na3 {[%clk 0:01:52.9]} 16... Rad8
{[%clk 0:01:55.8]} 17. Qe2 {[%clk 0:01:29.5]} 17... Qf4 {[%clk 0:01:20.3]} 18.
Ng1 {[%clk 0:01:01.4]} 18... e5 {[%clk 0:01:13.6]} 19. Nh3 {[%clk 0:01:00.9]}
19... Qh2 {[%clk 0:01:10.3]} 20. Nc2 {[%clk 0:00:51.2]} 20... f5 {[%clk
0:00:45.8]} 21. dxe5 {[%clk 0:00:35.7]} 21... fxg4 {[%clk 0:00:44.1]} 22. Qxg4
{[%clk 0:00:35.8]} 22... Nxe5 {[%clk 0:00:33.8]} 23. Qe6+ {[%clk 0:00:34.5]}
23... Nf7 {[%clk 0:00:33.9]} 24. Nd4 {[%clk 0:00:33.9]} 24... Kh8 {[%clk
0:00:33.3]} 25. Ng1 {[%clk 0:00:12.7]} 25... Bg7 {[%clk 0:00:32.4]} 26. Ndf3
{[%clk 0:00:08.1]} 26... Qh5 {[%clk 0:00:28.7]} 27. Rad1 {[%clk 0:00:08]} 27...
Nh6 {[%clk 0:00:23.9]} 28. Qh3 {[%clk 0:00:07.3]} 28... Qf5 {[%clk 0:00:18.7]}
29. Qxf5 {[%clk 0:00:07.2]} 29... Nxf5 {[%clk 0:00:19.6]} 30. Nh3 {[%clk
0:00:07.6]} 30... d4 {[%clk 0:00:19.5]} 31. Nhg5 {[%clk 0:00:06.7]} 31... dxc3
{[%clk 0:00:18.2]} 32. Rxd8 {[%clk 0:00:06.3]} 32... Rxd8 {[%clk 0:00:18]} 33.
Nf7+ {[%clk 0:00:06.6]} 33... Kg8 {[%clk 0:00:17.1]} 34. Nxd8 {[%clk 0:00:07.5]}
34... cxb2 {[%clk 0:00:17.8]} 35. Nxb7 {[%clk 0:00:08]} 35... Nd4 {[%clk
0:00:15.2]} 36. Nxd4 {[%clk 0:00:07.6]} 36... Bxd4 {[%clk 0:00:15.1]} 37. Rb1
{[%clk 0:00:08.3]} 37... Kg7 {[%clk 0:00:14.7]} 38. Nd6 {[%clk 0:00:08.7]} 38...
Kf6 {[%clk 0:00:14.2]} 39. Nc4 {[%clk 0:00:09.6]} 1-0

[Event "*** SCC Grand Prix: Titled Tuesday Blitz"]
[Site "Chess.com"]
[Date "2020.10.06"]
[Round "6"]
[White "DonBroca"]
[Black "GustavoJuarezF"]
[Result "1-0"]
[WhiteElo "2176"]
[BlackElo "2029"]
[TimeControl "180+1"]
[EndTime "11:08:32 PDT"]
[Termination "DonBroca won on time"]

1. e4 {[%clk 0:03:00.9]} 1... c5 {[%clk 0:02:58.1]} 2. Nf3 {[%clk 0:03:00.6]}
2... Nc6 {[%clk 0:02:57.8]} 3. d4 {[%clk 0:02:58.3]} 3... cxd4 {[%clk
0:02:57.8]} 4. Nxd4 {[%clk 0:02:59.2]} 4... Nf6 {[%clk 0:02:57.3]} 5. Nc3 {[%clk
0:02:56.3]} 5... e5 {[%clk 0:02:57.1]} 6. Ndb5 {[%clk 0:02:56.2]} 6... d6 {[%clk
0:02:57]} 7. Nd5 {[%clk 0:02:55.6]} 7... Nxd5 {[%clk 0:02:54.9]} 8. exd5 {[%clk
0:02:40]} 8... Nb8 {[%clk 0:02:54.2]} 9. Be2 {[%clk 0:02:32.4]} 9... Be7 {[%clk
0:02:50.6]} 10. O-O {[%clk 0:02:30.5]} 10... O-O {[%clk 0:02:49.4]} 11. Be3
{[%clk 0:02:29]} 11... a6 {[%clk 0:02:48.3]} 12. Na3 {[%clk 0:02:28.5]} 12... b5
{[%clk 0:02:46.2]} 13. c4 {[%clk 0:02:25]} 13... b4 {[%clk 0:02:38.2]} 14. Nc2
{[%clk 0:02:23.6]} 14... a5 {[%clk 0:02:37.9]} 15. Ne1 {[%clk 0:02:19.4]} 15...
Nd7 {[%clk 0:02:37.5]} 16. a3 {[%clk 0:02:13.6]} 16... bxa3 {[%clk 0:02:32.4]}
17. Rxa3 {[%clk 0:02:14.5]} 17... Qc7 {[%clk 0:02:31.9]} 18. b4 {[%clk
0:02:03.9]} 18... Bb7 {[%clk 0:02:25.7]} 19. b5 {[%clk 0:01:46.6]} 19... Nc5
{[%clk 0:02:11.4]} 20. Nd3 {[%clk 0:01:44.5]} 20... f5 {[%clk 0:01:54.8]} 21.
Nxc5 {[%clk 0:01:41.9]} 21... dxc5 {[%clk 0:01:54.1]} 22. Bd2 {[%clk 0:01:40.2]}
22... Ra7 {[%clk 0:01:46.1]} 23. Qa4 {[%clk 0:01:35.5]} 23... Rfa8 {[%clk
0:01:43.8]} 24. Rfa1 {[%clk 0:01:35]} 24... Bd8 {[%clk 0:01:39.6]} 25. Qb3
{[%clk 0:01:31.8]} 25... Qd6 {[%clk 0:01:30.6]} 26. R3a2 {[%clk 0:01:08.6]}
26... g6 {[%clk 0:01:19.8]} 27. Bc1 {[%clk 0:01:07.3]} 27... Bc7 {[%clk
0:01:00.9]} 28. Ba3 {[%clk 0:01:05]} 28... e4 {[%clk 0:00:57.1]} 29. g3 {[%clk
0:00:53.3]} 29... f4 {[%clk 0:00:53.7]} 30. gxf4 {[%clk 0:00:42.3]} 30... Qxf4
{[%clk 0:00:51.3]} 31. Qg3 {[%clk 0:00:42.8]} 31... Qf7 {[%clk 0:00:42.6]} 32.
Qg2 {[%clk 0:00:37]} 32... Be5 {[%clk 0:00:30.7]} 33. Rd1 {[%clk 0:00:35.5]}
33... Bd4 {[%clk 0:00:28.5]} 34. Bg4 {[%clk 0:00:32.8]} 34... Bc8 {[%clk
0:00:24.5]} 35. Bxc8 {[%clk 0:00:30.1]} 35... Rxc8 {[%clk 0:00:22.8]} 36. Bb2
{[%clk 0:00:30]} 36... e3 {[%clk 0:00:18.1]} 37. Bxd4 {[%clk 0:00:27.2]} 37...
cxd4 {[%clk 0:00:16.7]} 38. Rxd4 {[%clk 0:00:27.2]} 38... exf2+ {[%clk
0:00:16.1]} 39. Qxf2 {[%clk 0:00:26]} 39... Qe7 {[%clk 0:00:15.2]} 40. d6 {[%clk
0:00:24.1]} 40... Qe5 {[%clk 0:00:12.3]} 41. Rad2 {[%clk 0:00:21.1]} 41... Rf8
{[%clk 0:00:11.8]} 42. Qg3 {[%clk 0:00:18.5]} 42... Qf5 {[%clk 0:00:08.3]} 43.
Qg2 {[%clk 0:00:14.5]} 43... Raf7 {[%clk 0:00:04.6]} 44. Rd1 {[%clk 0:00:13.1]}
44... Qc5 {[%clk 0:00:01.9]} 45. Kh1 {[%clk 0:00:12.5]} 1-0